[Event "Early-Titled-Tuesday-Blitz-March-12-2024"]
[Site "Chess.com"]
[Date "2024.03.12"]
[Round "11"]
[White "SuperPower2011"]
[Black "andrew-blr"]
[Result "0-1"]
[WhiteElo "2788"]
[BlackElo "2645"]
[TimeControl "180+1"]
[EndTime "10:03:25 PDT"]
[Termination "andrew-blr won on time"]

1. e4 {[%clk 0:03:00]} 1... c5 {[%clk 0:02:59.8]} 2. Nf3 {[%clk 0:03:00.2]} 2...
e6 {[%clk 0:03:00.1]} 3. c3 {[%clk 0:02:59.3]} 3... d5 {[%clk 0:02:59.5]} 4. e5
{[%clk 0:02:58.7]} 4... Nc6 {[%clk 0:02:58.2]} 5. d4 {[%clk 0:02:58.1]} 5... f6
{[%clk 0:02:56.9]} 6. exf6 {[%clk 0:02:55.7]} 6... Nxf6 {[%clk 0:02:53]} 7. Bd3
{[%clk 0:02:56]} 7... Bd6 {[%clk 0:02:52]} 8. O-O {[%clk 0:02:55.8]} 8... Bd7
{[%clk 0:02:51.9]} 9. Qe2 {[%clk 0:02:54.5]} 9... Qb6 {[%clk 0:02:49.2]} 10.
dxc5 {[%clk 0:02:49.7]} 10... Bxc5 {[%clk 0:02:46.4]} 11. Ng5 {[%clk 0:02:49.9]}
11... O-O {[%clk 0:02:23.3]} 12. Qc2 {[%clk 0:02:00.1]} 12... h6 {[%clk
0:02:21.6]} 13. Nh7 {[%clk 0:02:00.6]} 13... Nxh7 {[%clk 0:01:34.9]} 14. Bxh7+
{[%clk 0:02:01.5]} 14... Kh8 {[%clk 0:01:35.5]} 15. Bg6 {[%clk 0:00:40.7]} 15...
e5 {[%clk 0:01:32.7]} 16. b4 {[%clk 0:00:38.3]} 16... Bd6 {[%clk 0:01:31.6]} 17.
Nd2 {[%clk 0:00:35.4]} 17... e4 {[%clk 0:01:28.7]} 18. Nb3 {[%clk 0:00:34.4]}
18... Rac8 {[%clk 0:01:15.5]} 19. Be3 {[%clk 0:00:33.5]} 19... Qc7 {[%clk
0:01:15.1]} 20. Qd2 {[%clk 0:00:19.8]} 20... Bxh2+ {[%clk 0:01:05.9]} 21. Kh1
{[%clk 0:00:20.3]} 21... Bf4 {[%clk 0:01:05.7]} 22. Qxd5 {[%clk 0:00:20.5]}
22... Ne7 {[%clk 0:00:50.9]} 23. Qxe4 {[%clk 0:00:16.2]} 23... Bc6 {[%clk
0:00:37.4]} 24. Qc2 {[%clk 0:00:09.8]} 24... Rf6 {[%clk 0:00:31.9]} 25. Be4
{[%clk 0:00:08]} 25... Rcf8 {[%clk 0:00:29.3]} 26. Bxc6 {[%clk 0:00:06.3]} 26...
Qxc6 {[%clk 0:00:28.5]} 27. Nd4 {[%clk 0:00:06.3]} 27... Qd5 {[%clk 0:00:27.6]}
28. Bxf4 {[%clk 0:00:02.8]} 28... Rxf4 {[%clk 0:00:27.4]} 29. Rae1 {[%clk
0:00:02.5]} 29... Qh5+ {[%clk 0:00:25.9]} 30. Kg1 {[%clk 0:00:02.8]} 30... Rh4
{[%clk 0:00:25.3]} 31. f3 {[%clk 0:00:03.1]} 31... Ng6 {[%clk 0:00:24.3]} 32.
Kf2 {[%clk 0:00:01.4]} 32... Nf4 {[%clk 0:00:23.6]} 33. Qe4 {[%clk 0:00:01.5]}
33... Rh2 {[%clk 0:00:22.8]} 34. Rg1 {[%clk 0:00:01.4]} 34... Nh3+ {[%clk
0:00:22.6]} 0-1

[Event "Early-Titled-Tuesday-Blitz-March-12-2024"]
[Site "Chess.com"]
[Date "2024.03.12"]
[Round "11"]
[White "agvega14"]
[Black "Gryffindorac8"]
[Result "0-1"]
[WhiteElo "2197"]
[BlackElo "2375"]
[TimeControl "180+1"]
[EndTime "10:03:34 PDT"]
[Termination "Gryffindorac8 won by checkmate"]

1. d4 {[%clk 0:02:54.5]} 1... Nf6 {[%clk 0:02:59.8]} 2. c4 {[%clk 0:02:54]} 2...
c5 {[%clk 0:02:59.6]} 3. d5 {[%clk 0:02:53.2]} 3... b5 {[%clk 0:02:59.7]} 4.
cxb5 {[%clk 0:02:53.2]} 4... a6 {[%clk 0:02:59.9]} 5. bxa6 {[%clk 0:02:54.1]}
5... Bxa6 {[%clk 0:03:00.2]} 6. Nc3 {[%clk 0:02:54.8]} 6... d6 {[%clk 0:03:00]}
7. g3 {[%clk 0:02:54.7]} 7... g6 {[%clk 0:02:59.9]} 8. Bg2 {[%clk 0:02:55.4]}
8... Bg7 {[%clk 0:03:00.3]} 9. Nh3 {[%clk 0:02:56]} 9... O-O {[%clk 0:02:59.9]}
10. O-O {[%clk 0:02:56.8]} 10... Nbd7 {[%clk 0:02:58.8]} 11. Qc2 {[%clk
0:02:57]} 11... Qb6 {[%clk 0:02:56]} 12. Rb1 {[%clk 0:02:56.5]} 12... Rfb8
{[%clk 0:02:55.2]} 13. b3 {[%clk 0:02:55.9]} 13... Ne8 {[%clk 0:02:42.2]} 14.
Bd2 {[%clk 0:02:55.1]} 14... Nc7 {[%clk 0:02:40.4]} 15. a4 {[%clk 0:02:54.1]}
15... Bb7 {[%clk 0:02:24.1]} 16. Nf4 {[%clk 0:02:48.1]} 16... Nf6 {[%clk
0:02:06.8]} 17. h4 {[%clk 0:02:39.9]} 17... h5 {[%clk 0:02:05.6]} 18. Rfd1
{[%clk 0:02:28]} 18... Na6 {[%clk 0:01:57.3]} 19. Nb5 {[%clk 0:01:56.4]} 19...
Nb4 {[%clk 0:01:44.2]} 20. Bxb4 {[%clk 0:01:26.3]} 20... cxb4 {[%clk 0:01:43]}
21. Qd2 {[%clk 0:01:19.6]} 21... Ng4 {[%clk 0:01:03.2]} 22. e3 {[%clk
0:01:17.2]} 22... Ba6 {[%clk 0:00:48.4]} 23. Nd4 {[%clk 0:01:16.9]} 23... Ne5
{[%clk 0:00:38.5]} 24. Rbc1 {[%clk 0:01:11.6]} 24... Rc8 {[%clk 0:00:38]} 25.
Rxc8+ {[%clk 0:01:06.3]} 25... Rxc8 {[%clk 0:00:38.9]} 26. Rc1 {[%clk
0:01:06.3]} 26... Rxc1+ {[%clk 0:00:33.4]} 27. Qxc1 {[%clk 0:01:07.2]} 27... Kh7
{[%clk 0:00:31.5]} 28. Qc2 {[%clk 0:01:02.3]} 28... Kg8 {[%clk 0:00:28.4]} 29.
Nc6 {[%clk 0:00:57.9]} 29... Qc7 {[%clk 0:00:13.5]} 30. Qd2 {[%clk 0:00:51.9]}
30... Nxc6 {[%clk 0:00:13.1]} 31. dxc6 {[%clk 0:00:51.8]} 31... Bc3 {[%clk
0:00:13.8]} 32. Qd5 {[%clk 0:00:50.6]} 32... e6 {[%clk 0:00:12.1]} 33. Qg5
{[%clk 0:00:43.8]} 33... Kf8 {[%clk 0:00:07.9]} 34. Qh6+ {[%clk 0:00:42.2]}
34... Ke7 {[%clk 0:00:07.8]} 35. Qh8 {[%clk 0:00:42.3]} 35... d5 {[%clk
0:00:06.9]} 36. Qa8 {[%clk 0:00:39.5]} 36... Bc8 {[%clk 0:00:04.8]} 37. Bxd5
{[%clk 0:00:38.9]} 37... Be5 {[%clk 0:00:03.3]} 38. Bf3 {[%clk 0:00:38]} 38...
Bxf4 {[%clk 0:00:03.7]} 39. gxf4 {[%clk 0:00:38.4]} 39... Kf6 {[%clk 0:00:04.3]}
40. Qa5 {[%clk 0:00:37.2]} 40... Qxa5 {[%clk 0:00:03.8]} 41. Kg2 {[%clk
0:00:36.1]} 41... Qc7 {[%clk 0:00:04.7]} 42. e4 {[%clk 0:00:35.8]} 42... Ke7
{[%clk 0:00:05.2]} 43. e5 {[%clk 0:00:35.9]} 43... Ba6 {[%clk 0:00:05.6]} 44.
Be4 {[%clk 0:00:35.8]} 44... Be2 {[%clk 0:00:05.5]} 45. f3 {[%clk 0:00:35.6]}
45... Bd1 {[%clk 0:00:06]} 46. Kf2 {[%clk 0:00:35.6]} 46... Bxb3 {[%clk
0:00:06.2]} 47. Ke3 {[%clk 0:00:35.8]} 47... Bd5 {[%clk 0:00:06.7]} 48. Kd4
{[%clk 0:00:35.4]} 48... Bxe4 {[%clk 0:00:06.9]} 49. fxe4 {[%clk 0:00:35.3]}
49... Qxc6 {[%clk 0:00:07.4]} 50. a5 {[%clk 0:00:34.3]} 50... Qc3# {[%clk
0:00:06.5]} 0-1

[Event "Early-Titled-Tuesday-Blitz-March-12-2024"]
[Site "Chess.com"]
[Date "2024.03.12"]
[Round "11"]
[White "GalaxyRoman"]
[Black "Zohid6"]
[Result "1-0"]
[WhiteElo "2737"]
[BlackElo "2877"]
[TimeControl "180+1"]
[EndTime "10:03:35 PDT"]
[Termination "GalaxyRoman won by checkmate"]

1. e4 {[%clk 0:03:00.9]} 1... e5 {[%clk 0:02:58.7]} 2. Nf3 {[%clk 0:02:59.8]}
2... Nf6 {[%clk 0:02:58.8]} 3. Nc3 {[%clk 0:02:58.5]} 3... Nc6 {[%clk
0:02:58.8]} 4. Bb5 {[%clk 0:02:58.1]} 4... Nd4 {[%clk 0:02:58.5]} 5. Bc4 {[%clk
0:02:57.2]} 5... Nxf3+ {[%clk 0:02:53.2]} 6. Qxf3 {[%clk 0:02:58.1]} 6... Bc5
{[%clk 0:02:53]} 7. d3 {[%clk 0:02:48.8]} 7... h6 {[%clk 0:02:52.7]} 8. Be3
{[%clk 0:02:45.4]} 8... d6 {[%clk 0:02:51.9]} 9. h3 {[%clk 0:02:35.7]} 9... c6
{[%clk 0:02:45.3]} 10. Bb3 {[%clk 0:02:32.9]} 10... b5 {[%clk 0:02:43.7]} 11. a4
{[%clk 0:02:25.3]} 11... b4 {[%clk 0:02:42]} 12. Ne2 {[%clk 0:02:25.1]} 12... a5
{[%clk 0:02:40]} 13. Bxc5 {[%clk 0:02:19.3]} 13... dxc5 {[%clk 0:02:30.4]} 14.
O-O {[%clk 0:02:15.1]} 14... Qe7 {[%clk 0:02:22.6]} 15. Qe3 {[%clk 0:02:09.6]}
15... g5 {[%clk 0:02:17.8]} 16. f3 {[%clk 0:01:54.5]} 16... Nh5 {[%clk
0:02:07.9]} 17. Bc4 {[%clk 0:01:46.6]} 17... Nf4 {[%clk 0:02:04.8]} 18. Nc1
{[%clk 0:01:37.3]} 18... Be6 {[%clk 0:01:33.6]} 19. Bxe6 {[%clk 0:01:37.1]}
19... Nxe6 {[%clk 0:01:34.5]} 20. Nb3 {[%clk 0:01:36]} 20... h5 {[%clk
0:01:34.9]} 21. Rac1 {[%clk 0:01:22]} 21... g4 {[%clk 0:01:31.7]} 22. fxg4
{[%clk 0:01:20.7]} 22... hxg4 {[%clk 0:01:32.6]} 23. Rf5 {[%clk 0:01:17.2]}
23... gxh3 {[%clk 0:01:31.3]} 24. g3 {[%clk 0:01:14.3]} 24... O-O-O {[%clk
0:01:23.5]} 25. Nxa5 {[%clk 0:01:09]} 25... Rdg8 {[%clk 0:01:19.7]} 26. Nxc6
{[%clk 0:01:03.1]} 26... Qc7 {[%clk 0:01:18.7]} 27. c3 {[%clk 0:00:09.4]} 27...
b3 {[%clk 0:01:16.6]} 28. Nb4 {[%clk 0:00:09.4]} 28... Qd8 {[%clk 0:00:56.9]}
29. Nd5 {[%clk 0:00:08.9]} 29... Rxg3+ {[%clk 0:00:32.7]} 30. Qxg3 {[%clk
0:00:07.3]} 30... Rg8 {[%clk 0:00:33.6]} 31. Ne7+ {[%clk 0:00:07.6]} 31... Qxe7
{[%clk 0:00:31.8]} 32. Qxg8+ {[%clk 0:00:08.3]} 32... Nd8 {[%clk 0:00:32.4]} 33.
Qg3 {[%clk 0:00:08.2]} 33... f6 {[%clk 0:00:32.4]} 34. Qxh3 {[%clk 0:00:08.4]}
34... Kb8 {[%clk 0:00:31.9]} 35. Qg3 {[%clk 0:00:08.5]} 35... Ne6 {[%clk
0:00:31.1]} 36. Rcf1 {[%clk 0:00:08.7]} 36... c4 {[%clk 0:00:31.3]} 37. dxc4
{[%clk 0:00:08]} 37... Qc5+ {[%clk 0:00:31.3]} 38. Kg2 {[%clk 0:00:07.9]} 38...
Qxc4 {[%clk 0:00:31.6]} 39. Qf3 {[%clk 0:00:06.6]} 39... Nc5 {[%clk 0:00:27.8]}
40. Rxf6 {[%clk 0:00:06.6]} 40... Nxe4 {[%clk 0:00:28.5]} 41. Rf8+ {[%clk
0:00:07]} 41... Kc7 {[%clk 0:00:29.2]} 42. Qf7+ {[%clk 0:00:07]} 42... Qxf7
{[%clk 0:00:29.5]} 43. R1xf7+ {[%clk 0:00:07.9]} 43... Kc6 {[%clk 0:00:30.2]}
44. a5 {[%clk 0:00:07.6]} 44... Kb5 {[%clk 0:00:30.4]} 45. Rb7+ {[%clk 0:00:07]}
45... Ka6 {[%clk 0:00:30.8]} 46. Rxb3 {[%clk 0:00:07]} 46... Nc5 {[%clk
0:00:31.2]} 47. Ra8# {[%clk 0:00:07]} 1-0

[Event "Early-Titled-Tuesday-Blitz-March-12-2024"]
[Site "Chess.com"]
[Date "2024.03.12"]
[Round "11"]
[White "Kirill_Klukin"]
[Black "jk13"]
[Result "0-1"]
[WhiteElo "2794"]
[BlackElo "2692"]
[TimeControl "180+1"]
[EndTime "10:03:39 PDT"]
[Termination "jk13 won on time"]

1. e4 {[%clk 0:02:59.6]} 1... e5 {[%clk 0:02:59.1]} 2. Nf3 {[%clk 0:02:58.6]}
2... Nc6 {[%clk 0:02:58.9]} 3. Bc4 {[%clk 0:02:58.8]} 3... Bc5 {[%clk
0:02:57.1]} 4. b4 {[%clk 0:02:58.9]} 4... Bxb4 {[%clk 0:02:56]} 5. c3 {[%clk
0:02:59.2]} 5... Ba5 {[%clk 0:02:56.8]} 6. d4 {[%clk 0:02:58.5]} 6... exd4
{[%clk 0:02:57.7]} 7. O-O {[%clk 0:02:58.6]} 7... Nge7 {[%clk 0:02:58.2]} 8. Ng5
{[%clk 0:02:53]} 8... d5 {[%clk 0:02:57.7]} 9. exd5 {[%clk 0:02:49.7]} 9... Ne5
{[%clk 0:02:57]} 10. Qxd4 {[%clk 0:02:40.9]} 10... f6 {[%clk 0:02:19.8]} 11.
Bb5+ {[%clk 0:02:32.5]} 11... Kf8 {[%clk 0:02:17.9]} 12. Ba3 {[%clk 0:02:24.6]}
12... Kg8 {[%clk 0:02:00.6]} 13. d6 {[%clk 0:01:58.1]} 13... cxd6 {[%clk
0:01:44.5]} 14. Bxd6 {[%clk 0:01:48.9]} 14... g6 {[%clk 0:01:22]} 15. Ne4 {[%clk
0:01:43.1]} 15... Nf5 {[%clk 0:01:06.4]} 16. Qd5+ {[%clk 0:00:36.8]} 16... Kg7
{[%clk 0:00:55.1]} 17. Bc4 {[%clk 0:00:35.8]} 17... Nxc4 {[%clk 0:00:41.6]} 18.
Qxc4 {[%clk 0:00:04.7]} 18... Nxd6 {[%clk 0:00:41.7]} 19. Nxd6 {[%clk
0:00:05.1]} 19... Qxd6 {[%clk 0:00:42.4]} 20. a4 {[%clk 0:00:02.4]} 20... Be6
{[%clk 0:00:40.3]} 21. Qh4 {[%clk 0:00:02.7]} 21... Rhd8 {[%clk 0:00:34.6]} 22.
Na3 {[%clk 0:00:02.8]} 22... Bf7 {[%clk 0:00:32.3]} 23. Nc4 {[%clk 0:00:02.1]}
23... Bxc4 {[%clk 0:00:29.7]} 24. Qxc4 {[%clk 0:00:03]} 24... Rac8 {[%clk
0:00:29.9]} 25. Qe4 {[%clk 0:00:03.8]} 25... Rc7 {[%clk 0:00:24.6]} 26. g3
{[%clk 0:00:02.2]} 26... Bxc3 {[%clk 0:00:24.2]} 27. Rad1 {[%clk 0:00:01.7]}
27... Qxd1 {[%clk 0:00:22.7]} 28. Rxd1 {[%clk 0:00:01.9]} 28... Rxd1+ {[%clk
0:00:23.4]} 29. Kg2 {[%clk 0:00:02.8]} 29... Rdd7 {[%clk 0:00:22.8]} 30. h4
{[%clk 0:00:03]} 30... h5 {[%clk 0:00:22.5]} 31. Qf3 {[%clk 0:00:01.7]} 31...
Be5 {[%clk 0:00:22.5]} 32. Qe4 {[%clk 0:00:02.1]} 32... Rd2 {[%clk 0:00:20.7]}
33. Kf1 {[%clk 0:00:01.6]} 33... Rc1+ {[%clk 0:00:19.7]} 34. Kg2 {[%clk
0:00:02.2]} 34... Rcc2 {[%clk 0:00:18.7]} 35. Qxb7+ {[%clk 0:00:02.5]} 35... Kh6
{[%clk 0:00:18.6]} 36. Qa8 {[%clk 0:00:03.2]} 36... Rxf2+ {[%clk 0:00:18.6]} 37.
Kg1 {[%clk 0:00:03.9]} 37... f5 {[%clk 0:00:17.3]} 38. Qf8+ {[%clk 0:00:03.5]}
38... Bg7 {[%clk 0:00:17.5]} 39. Qe7 {[%clk 0:00:03.7]} 39... Rfe2 {[%clk
0:00:17.5]} 40. Qg5+ {[%clk 0:00:03.6]} 40... Kh7 {[%clk 0:00:17.3]} 41. Kf1
{[%clk 0:00:04.5]} 41... Rh2 {[%clk 0:00:16.3]} 42. Kg1 {[%clk 0:00:04.4]} 42...
Rhd2 {[%clk 0:00:17]} 0-1

[Event "Early-Titled-Tuesday-Blitz-March-12-2024"]
[Site "Chess.com"]
[Date "2024.03.12"]
[Round "11"]
[White "TigrVShlyape"]
[Black "LiadCuba"]
[Result "1-0"]
[WhiteElo "2926"]
[BlackElo "2565"]
[TimeControl "180+1"]
[EndTime "10:03:42 PDT"]
[Termination "TigrVShlyape won on time"]

1. e4 {[%clk 0:03:00.9]} 1... c5 {[%clk 0:02:56]} 2. Nf3 {[%clk 0:03:00.6]} 2...
d6 {[%clk 0:02:56.2]} 3. d4 {[%clk 0:03:00.2]} 3... cxd4 {[%clk 0:02:57.1]} 4.
Nxd4 {[%clk 0:03:00.5]} 4... Nf6 {[%clk 0:02:56.9]} 5. Nc3 {[%clk 0:03:00.5]}
5... a6 {[%clk 0:02:57.4]} 6. a4 {[%clk 0:03:00]} 6... e5 {[%clk 0:02:56.6]} 7.
Nf3 {[%clk 0:02:51.9]} 7... Be7 {[%clk 0:02:51.8]} 8. Bc4 {[%clk 0:02:50.7]}
8... Be6 {[%clk 0:02:49.6]} 9. Bb3 {[%clk 0:02:47.2]} 9... O-O {[%clk
0:02:48.5]} 10. O-O {[%clk 0:02:47.3]} 10... Nc6 {[%clk 0:02:46.2]} 11. Bg5
{[%clk 0:02:46.8]} 11... Nd7 {[%clk 0:02:37.5]} 12. Be3 {[%clk 0:02:45.9]} 12...
Rc8 {[%clk 0:02:03.5]} 13. Nd2 {[%clk 0:02:22.1]} 13... Nc5 {[%clk 0:01:55.9]}
14. Bxc5 {[%clk 0:02:20.1]} 14... dxc5 {[%clk 0:01:56.8]} 15. Bxe6 {[%clk
0:02:19.7]} 15... fxe6 {[%clk 0:01:57.7]} 16. Nc4 {[%clk 0:01:50.6]} 16... Qc7
{[%clk 0:01:45.7]} 17. Qg4 {[%clk 0:01:31.8]} 17... Rf6 {[%clk 0:01:44.1]} 18.
h4 {[%clk 0:01:03.3]} 18... Nd4 {[%clk 0:01:41.4]} 19. g3 {[%clk 0:00:41]} 19...
Nxc2 {[%clk 0:01:21.7]} 20. Rad1 {[%clk 0:00:38.6]} 20... Nd4 {[%clk 0:01:18.6]}
21. a5 {[%clk 0:00:38.5]} 21... Rcf8 {[%clk 0:01:17.7]} 22. Rd3 {[%clk
0:00:33.2]} 22... Rg6 {[%clk 0:00:34.3]} 23. Qh5 {[%clk 0:00:32.2]} 23... Bf6
{[%clk 0:00:34.7]} 24. Kg2 {[%clk 0:00:30.8]} 24... Qf7 {[%clk 0:00:34.6]} 25.
Qd1 {[%clk 0:00:21.7]} 25... Nc6 {[%clk 0:00:17.9]} 26. Rd7 {[%clk 0:00:19.7]}
26... Qe8 {[%clk 0:00:17.5]} 27. h5 {[%clk 0:00:18.2]} 27... Rg5 {[%clk
0:00:17.3]} 28. Rxb7 {[%clk 0:00:17.8]} 28... Nd4 {[%clk 0:00:13.7]} 29. Rb6
{[%clk 0:00:15.6]} 29... Rxh5 {[%clk 0:00:12.7]} 30. Rxa6 {[%clk 0:00:13.4]}
30... Qg6 {[%clk 0:00:12.2]} 31. Rd6 {[%clk 0:00:12.6]} 31... Qh6 {[%clk
0:00:10.6]} 32. Rh1 {[%clk 0:00:12.1]} 32... Rxh1 {[%clk 0:00:08.3]} 33. Qxh1
{[%clk 0:00:13]} 33... Qxh1+ {[%clk 0:00:08.1]} 34. Kxh1 {[%clk 0:00:12.9]}
34... h5 {[%clk 0:00:07.5]} 35. Kg2 {[%clk 0:00:12.4]} 35... Rb8 {[%clk
0:00:06.4]} 36. a6 {[%clk 0:00:12.1]} 36... Nb5 {[%clk 0:00:04.2]} 37. Rb6
{[%clk 0:00:10.6]} 37... Rxb6 {[%clk 0:00:03.1]} 38. Nxb6 {[%clk 0:00:10.8]}
38... Na7 {[%clk 0:00:03.5]} 39. Nd7 {[%clk 0:00:10.3]} 39... Be7 {[%clk
0:00:02.5]} 40. Nxe5 {[%clk 0:00:10.6]} 40... Bd6 {[%clk 0:00:01.1]} 41. Nc4
{[%clk 0:00:10.4]} 1-0

[Event "Early-Titled-Tuesday-Blitz-March-12-2024"]
[Site "Chess.com"]
[Date "2024.03.12"]
[Round "11"]
[White "Fandorine"]
[Black "zajka-molotok"]
[Result "1-0"]
[WhiteElo "2949"]
[BlackElo "2565"]
[TimeControl "180+1"]
[EndTime "10:03:42 PDT"]
[Termination "Fandorine won by resignation"]

1. d4 {[%clk 0:03:00.9]} 1... d5 {[%clk 0:02:58.7]} 2. c4 {[%clk 0:03:01.5]}
2... dxc4 {[%clk 0:02:58.8]} 3. e3 {[%clk 0:03:01]} 3... Nf6 {[%clk 0:02:57.8]}
4. Bxc4 {[%clk 0:03:01.3]} 4... e6 {[%clk 0:02:58.3]} 5. Nf3 {[%clk 0:03:01.8]}
5... c5 {[%clk 0:02:58]} 6. O-O {[%clk 0:03:02.2]} 6... a6 {[%clk 0:02:57.8]} 7.
Re1 {[%clk 0:02:58.1]} 7... b5 {[%clk 0:02:52.2]} 8. Bf1 {[%clk 0:02:57.7]} 8...
Bb7 {[%clk 0:02:50.9]} 9. a4 {[%clk 0:02:57.1]} 9... b4 {[%clk 0:02:50]} 10. e4
{[%clk 0:02:57.7]} 10... Nbd7 {[%clk 0:02:43.7]} 11. e5 {[%clk 0:02:56.3]} 11...
Nd5 {[%clk 0:02:41.3]} 12. Nbd2 {[%clk 0:02:54.3]} 12... Be7 {[%clk 0:02:38.2]}
13. Ne4 {[%clk 0:02:51.9]} 13... O-O {[%clk 0:02:35.8]} 14. Bg5 {[%clk
0:02:49.3]} 14... h6 {[%clk 0:02:32.6]} 15. Bxe7 {[%clk 0:02:48.9]} 15... Qxe7
{[%clk 0:02:33.5]} 16. Rc1 {[%clk 0:02:45.2]} 16... cxd4 {[%clk 0:02:26.2]} 17.
Qxd4 {[%clk 0:02:44.4]} 17... Rac8 {[%clk 0:02:21.9]} 18. Rxc8 {[%clk
0:02:36.8]} 18... Rxc8 {[%clk 0:02:18.1]} 19. Nd6 {[%clk 0:02:36.6]} 19... Rc7
{[%clk 0:02:13]} 20. Nxb7 {[%clk 0:02:36.3]} 20... Rxb7 {[%clk 0:02:12.7]} 21.
Bxa6 {[%clk 0:02:37.2]} 21... Rb8 {[%clk 0:02:05.7]} 22. Bc4 {[%clk 0:02:32.3]}
22... N7b6 {[%clk 0:02:02.9]} 23. a5 {[%clk 0:02:29.6]} 23... Nxc4 {[%clk
0:01:59.9]} 24. Qxc4 {[%clk 0:02:30.5]} 24... Qa7 {[%clk 0:01:54.7]} 25. Ra1
{[%clk 0:02:29.4]} 25... Rb7 {[%clk 0:01:44.5]} 26. h3 {[%clk 0:02:04.1]} 26...
Rc7 {[%clk 0:01:44.3]} 27. Qd3 {[%clk 0:02:01.3]} 27... Nf4 {[%clk 0:01:34.9]}
28. Qe3 {[%clk 0:01:54.3]} 28... Qxe3 {[%clk 0:01:26.2]} 29. fxe3 {[%clk
0:01:55.2]} 29... Nd3 {[%clk 0:01:18.3]} 30. Nd4 {[%clk 0:01:39.8]} 30... Nxe5
{[%clk 0:01:15.8]} 31. a6 {[%clk 0:01:39.1]} 31... Ra7 {[%clk 0:01:15.1]} 32.
Nb5 {[%clk 0:01:37.8]} 32... Ra8 {[%clk 0:01:14.2]} 33. a7 {[%clk 0:01:37.5]}
33... Nc6 {[%clk 0:01:11.3]} 34. Ra6 {[%clk 0:01:36.9]} 34... Nxa7 {[%clk
0:00:54.8]} 35. Rxa7 {[%clk 0:01:36.7]} 35... Rd8 {[%clk 0:00:52.7]} 36. Nd4
{[%clk 0:01:35.4]} 36... e5 {[%clk 0:00:48.8]} 37. Nc6 {[%clk 0:01:34.8]} 37...
Rd2 {[%clk 0:00:44]} 38. Nxe5 {[%clk 0:01:23.9]} 38... Rxb2 {[%clk 0:00:39.1]}
39. Rxf7 {[%clk 0:01:24.4]} 39... Re2 {[%clk 0:00:34.5]} 40. Rb7 {[%clk
0:01:20.6]} 40... Rxe3 {[%clk 0:00:33.3]} 41. Nc4 {[%clk 0:01:20.6]} 41... Re1+
{[%clk 0:00:30.7]} 42. Kf2 {[%clk 0:01:20.6]} 42... Rb1 {[%clk 0:00:30.6]} 43.
Na5 {[%clk 0:01:07.9]} 43... Kh7 {[%clk 0:00:26.5]} 44. Nc6 {[%clk 0:01:07.9]}
44... b3 {[%clk 0:00:25.7]} 45. Na5 {[%clk 0:01:08.1]} 45... b2 {[%clk 0:00:16]}
46. Nc4 {[%clk 0:01:07.6]} 46... Rc1 {[%clk 0:00:13.9]} 47. Nxb2 {[%clk
0:01:07.8]} 47... Rb1 {[%clk 0:00:14.2]} 48. Rb6 {[%clk 0:01:07.4]} 48... h5
{[%clk 0:00:11.5]} 49. Nc4 {[%clk 0:01:07.6]} 49... Rc1 {[%clk 0:00:11.6]} 50.
Ne3 {[%clk 0:01:07.3]} 50... Ra1 {[%clk 0:00:11]} 51. Rc6 {[%clk 0:01:06.4]}
51... g6 {[%clk 0:00:10.9]} 52. h4 {[%clk 0:01:05.1]} 52... Kh6 {[%clk
0:00:10.7]} 53. g3 {[%clk 0:01:04.8]} 53... Ra2+ {[%clk 0:00:10.2]} 54. Kf3
{[%clk 0:01:05]} 54... Ra3 {[%clk 0:00:10.6]} 55. Rc7 {[%clk 0:00:57.1]} 55...
Rb3 {[%clk 0:00:10.4]} 56. Re7 {[%clk 0:00:57.2]} 56... Ra3 {[%clk 0:00:10.4]}
57. Kg2 {[%clk 0:00:56.6]} 57... Ra2+ {[%clk 0:00:10.4]} 58. Kh3 {[%clk
0:00:56.4]} 58... Ra3 {[%clk 0:00:09.6]} 59. Ng2 {[%clk 0:00:56.6]} 59... Ra1
{[%clk 0:00:08.4]} 60. Nf4 {[%clk 0:00:56.1]} 60... Ra6 {[%clk 0:00:07.6]} 61.
Re6 {[%clk 0:00:55.7]} 1-0

[Event "Early-Titled-Tuesday-Blitz-March-12-2024"]
[Site "Chess.com"]
[Date "2024.03.12"]
[Round "11"]
[White "Baronessa08"]
[Black "HATilay"]
[Result "1-0"]
[WhiteElo "2577"]
[BlackElo "2669"]
[TimeControl "180+1"]
[EndTime "10:03:43 PDT"]
[Termination "Baronessa08 won by checkmate"]

1. c4 {[%clk 0:03:00.9]} 1... Nf6 {[%clk 0:02:52.9]} 2. Nc3 {[%clk 0:03:00.3]}
2... e5 {[%clk 0:02:43.5]} 3. g3 {[%clk 0:02:59]} 3... d5 {[%clk 0:02:41.9]} 4.
cxd5 {[%clk 0:02:57.8]} 4... Nxd5 {[%clk 0:02:42.6]} 5. Bg2 {[%clk 0:02:57.8]}
5... Nxc3 {[%clk 0:02:42.7]} 6. bxc3 {[%clk 0:02:55.4]} 6... Bc5 {[%clk
0:02:43.1]} 7. Nf3 {[%clk 0:02:49]} 7... Nc6 {[%clk 0:02:42.8]} 8. Qc2 {[%clk
0:02:28.1]} 8... Rb8 {[%clk 0:02:25]} 9. d3 {[%clk 0:02:26.2]} 9... O-O {[%clk
0:02:18.4]} 10. h4 {[%clk 0:02:26.3]} 10... b6 {[%clk 0:02:14.6]} 11. h5 {[%clk
0:02:25]} 11... h6 {[%clk 0:02:14.3]} 12. Rh4 {[%clk 0:02:22.5]} 12... Bf5
{[%clk 0:02:10.7]} 13. Nd2 {[%clk 0:02:09.6]} 13... Na5 {[%clk 0:01:39.1]} 14.
Ne4 {[%clk 0:01:54.6]} 14... Be7 {[%clk 0:01:36.6]} 15. Rh1 {[%clk 0:01:54.2]}
15... Bh7 {[%clk 0:01:28.6]} 16. g4 {[%clk 0:01:52.2]} 16... c5 {[%clk
0:01:14.5]} 17. g5 {[%clk 0:01:36.5]} 17... hxg5 {[%clk 0:00:51.6]} 18. h6
{[%clk 0:01:36.6]} 18... f5 {[%clk 0:00:52.1]} 19. hxg7 {[%clk 0:01:35.3]} 19...
Kxg7 {[%clk 0:00:52.8]} 20. Ng3 {[%clk 0:01:30.1]} 20... Bg6 {[%clk 0:00:53.2]}
21. Bd2 {[%clk 0:01:10.3]} 21... Rh8 {[%clk 0:00:47.5]} 22. O-O-O {[%clk
0:01:08.9]} 22... Rh4 {[%clk 0:00:44.4]} 23. Rdg1 {[%clk 0:01:04.2]} 23... c4
{[%clk 0:00:44.2]} 24. Rxh4 {[%clk 0:01:00.8]} 24... Ba3+ {[%clk 0:00:24]} 25.
Kd1 {[%clk 0:00:52.1]} 25... cxd3 {[%clk 0:00:16.2]} 26. exd3 {[%clk 0:00:52.1]}
26... gxh4 {[%clk 0:00:16.3]} 27. Nxf5+ {[%clk 0:00:50]} 27... Kh7 {[%clk
0:00:13]} 28. Be4 {[%clk 0:00:44.4]} 28... Qf6 {[%clk 0:00:12.6]} 29. Bg5 {[%clk
0:00:43.5]} 29... Qe6 {[%clk 0:00:03]} 30. Qe2 {[%clk 0:00:22.9]} 30... Rg8
{[%clk 0:00:02.2]} 31. Rh1 {[%clk 0:00:22.5]} 31... Bxf5 {[%clk 0:00:02.1]} 32.
Qh5+ {[%clk 0:00:20.8]} 32... Kg7 {[%clk 0:00:02.6]} 33. Bh6+ {[%clk 0:00:12.2]}
33... Kh8 {[%clk 0:00:03]} 34. Bxf5 {[%clk 0:00:11.3]} 34... Qxa2 {[%clk
0:00:01.8]} 35. Bf8# {[%clk 0:00:10.2]} 1-0